Cogmind - Beta 12 @@@ ROGUE MODE // 2023.03.07 @ 22:52:35 Player: ChromeKnight Result: Destroyed by Y-45 Defender with Heavy Assault Rifle Performance ------------- Evolutions (1) 500 Regions Visited (4) 800 Robots Destroyed (50) 250 Value Destroyed (1274) 1274 Prototype IDs (2) 40 Alien Tech Used (0) 0 Bonus (0) 0 TOTAL SCORE: 2864 Bonus ------- None Cogmind --------- Core Integrity 0/400 Matter 300/300 Energy 276/280 System Corruption 0% Temperature Cool (11) Movement Walking (190) Ox1 Location -9/Storage Parts ------- > --- POWER (1) -------- Heavy Ion Engine > --- PROPULSION (2) --- Improved Aluminum Leg Improved Aluminum Leg > --- UTILITY (4) ------ Medium Storage Unit Weight Redist. System Light Armor Plating Sensor Drone Bay (20/20) > --- WEAPON (2) ------- Scythe > --- INVENTORY (10) --- Improved Aluminum Leg Improved Aluminum Leg Improved Aluminum Leg Improved Aluminum Leg Improved Signal Interpreter Light Armor Plating Light Armor Plating Drone Bay (2/2) Drone Bay (2/2) Peak State ------------ > --- POWER ------------ Light Deuterium Engine > --- PROPULSION ------- Aluminum Leg Carbon-fiber Leg > --- UTILITY ---------- Medium Storage Unit Reaction Control System Hardened Medium Armor Plating Sensor Drone Bay > --- WEAPON ----------- Scythe Scythe > --- INVENTORY -------- Improved Signal Interpreter Light Armor Plating Heavy Armor Plating [Rating: 29] Favorites ----------- Power Heavy Ion Engine Engine Heavy Ion Engine Propulsion Aluminum Leg Leg Aluminum Leg Utility Medium Storage Unit Device Sensor Drone Bay Storage Medium Storage Unit Protection Light Armor Plating Weapon Scythe Energy Gun Beamcaster Ballistic Gun Assault Rifle Launcher Grenade Launcher Slashing Weapon Scythe Build | -11 -10 -10 -9 -9 ------- Run | Jun Mat Min Mat Sto Slots Evolved 2 | . . . 2 . Power . | . . . . . Propulsion . | . . . . . Utility 2 | . . . 2 . Weapon . | . . . . . Parts Attached 53 | 6 1 9 14 23 Power 9 | 1 . . 4 4 Engine 9 | 1 . . 4 4 Core . | . . . . . Reactor . | . . . . . Propulsion 14 | 2 . 1 5 6 Treads . | . . . . . Leg 14 | 2 . 1 5 6 Wheel . | . . . . . Hover . | . . . . . Flight . | . . . . . Utility 21 | 1 1 4 4 11 Device 6 | . . 2 1 3 Storage 4 | 1 1 . 1 1 Processor . | . . . . . Hackware . | . . . . . Protection 11 | . . 2 2 7 Artifact . | . . . . . Weapon 9 | 2 . 4 1 2 Energy Gun 1 | . . . 1 . Energy Cannon . | . . . . . Ballistic Gun 5 | 2 . 3 . . Ballistic Cannon . | . . . . . Launcher 1 | . . 1 . . Special Weapon . | . . . . . Impact Weapon . | . . . . . Slashing Weapon 2 | . . . . 2 Piercing Weapon . | . . . . . Special Melee Weapon . | . . . . . Unidentified Prototypes 2 | . . 1 . 1 Parts Lost 11 | . . . 1 10 Power 2 | . . . . 2 Propulsion 2 | . . . . 2 Utility 5 | . . . . 5 Weapon 2 | . . . 1 1 Highest Loss Streak 10 | . . . 1 10 To Critical Strikes . | . . . . . Average Slot Usage (%) 87 | . 85 98 83 86 Engine 10 | . 14 14 10 10 Leg 22 | . 28 28 22 21 Device 13 | . . 4 8 19 Storage 11 | . 14 14 11 11 Protection 11 | . . 8 16 10 Energy Gun 2 | . . . 8 . Ballistic Gun 4 | . 28 19 2 . Launcher 2 | . . 8 3 . Slashing Weapon 7 | . . . . 14 Naked Turns . | . . . . . Heaviest Build 44 | 12 17 25 36 44 Greatest Support 32 | 20 20 20 25 32 Greatest Overweight (x) 11 | 1 . 1 1 11 Average Overweight (x) . | . . . 1 1 Largest Inventory Capacity 10 | 8 10 10 10 10 Average Capacity 9 | 6 8 10 10 10 Most Carried 10 | 1 7 10 10 10 Average Carried 6 | . 3 9 10 5 Final Capacity 10 | 8 10 10 10 10 Final Carried 10 | 1 7 10 10 9 Class Distribution -------------------- 74% | Mutant 25% | Scavenger-Mutant Dominant Class ---------------- Mutant | -10/Materials Mutant | -10/Mines Scavenger-Mutant | -9/Materials Mutant | -9/Storage Resources | -11 -10 -10 -9 -9 ----------- Run | Jun Mat Min Mat Sto Matter Collected 857 | 225 93 118 216 205 Remotely . | . . . . . Salvage Created 2025 | . 127 89 691 1118 Parts 133 | . 9 12 39 73 Haulers Intercepted 5 | . 1 . 1 3 Recyclers Shooed 5 | . . . 5 . Parts Field Recycled . | . . . . . Retrieved Matter . | . . . . . Parts Self-Destructed . | . . . . . Prevented . | . . . . . Kills | -11 -10 -10 -9 -9 ------- Run | Jun Mat Min Mat Sto Combat Hostiles Destroyed 40 | . 1 6 13 20 Melee 20 | . . . . 20 Guns 20 | . 1 6 13 . Classes Destroyed 8 | . 3 1 3 1 Hauler 5 | . 1 . 1 3 Recycler 3 | . . . 2 1 Operator 1 | . . . . 1 Watcher 1 | . 1 . . . Swarmer 15 | . . 6 5 4 Grunt 9 | . 1 . 2 6 Duelist 1 | . . . 1 . Sentry 15 | . . . 5 10 Best Kill Streak 7 | . 3 3 6 7 Combat Bots Only 6 | . 1 3 4 6 Max Kills in Single Turn 1 | . 1 1 1 1 Gunslinging . | . . . . . Exploded . | . . . . . Melee 1 | . . . . 1 Uniques/NPCs Destroyed . | . . . . . Combat | -11 -10 -10 -9 -9 -------- Run | Jun Mat Min Mat Sto Damage Taken 3012 | . . 173 806 2033 Core 420 | . . 20 57 343 Absorbed by Shields 17 | . . . . 17 Regen/Repaired (Parts) 47 | . . . 47 . Core Remaining (%) 96 | 100 . 92 . . Volleys Fired 95 | . 8 13 74 . Largest 2 | . 2 2 1 . Hottest 75 | . 40 40 75 . Shots Fired 116 | . 16 26 74 . Gun 116 | . 16 26 74 . Cannon . | . . . . . Launcher . | . . . . . Special . | . . . . . Kinetic 68 | . 16 26 26 . Thermal 48 | . . . 48 . Explosive . | . . . . . Electromagnetic . | . . . . . Robot Hit Streak 14 | . 7 7 14 . Robot Miss Streak 3 | . 1 2 3 . Penetration Max . | . . . . . Secondary Targets 1 | . . 1 . . Max Gunslinging Chain 1 | . . 1 . . Shots Hit Robots 143 | . 13 15 57 58 Core Hits 58 | . 5 6 22 25 Critical Kills . | . . . . . Critical Parts Destroyed 1 | . . . 1 . Critical Strikes 11 | . . . 4 7 Burn 3 | . . . 3 . Destroy 1 | . . . 1 . Sever 7 | . . . . 7 Melee Attacks 68 | . . . . 68 Impact . | . . . . . Slashing 68 | . . . . 68 Piercing . | . . . . . Sneak Attacks 6 | . . . . 6 Combat Hostiles . | . . . . . Follow-up Attacks 6 | . . . . 6 Damage Inflicted 3341 | . 163 190 980 2008 Guns 1333 | . 163 190 980 . Cannons . | . . . . . Explosions . | . . . . . Melee 2008 | . . . . 2008 Ramming . | . . . . . Kinetic 514 | . 163 190 161 . Thermal 819 | . . . 819 . Explosive . | . . . . . Electromagnetic . | . . . . . Impact . | . . . . . Slashing 2008 | . . . . 2008 Piercing . | . . . . . Highest Corruption . | . . . . . Average Corruption . | . . . . . Corruption Purged . | . . . . . Corruption Blocked . | . . . . . Overload Shots . | . . . . . Overflow Damage 4 | . . . . 4 Projectiles . | . . . . . Explosions . | . . . . . Melee 4 | . . . . 4 Knockbacks . | . . . . . Impact . | . . . . . Kinetic . | . . . . . Secondary . | . . . . . Self-Inflicted Damage . | . . . . . Shots . | . . . . . Rammed . | . . . . . Targets Rammed . | . . . . . Kicked . | . . . . . Crushed . | . . . . . Highest Temperature 146 | . . . 146 21 Average Temperature 43 | . . . 45 9 Received Heat Transfer 1011 | . . . 219 792 Siege Activations . | . . . . . Robots Corrupted . | . . . . . Combat Hostiles . | . . . . . Parts Fried . | . . . . . Impact Corruptions . | . . . . . Robots Melted . | . . . . . Combat Hostiles . | . . . . . Parts Melted 5 | . . . 5 . Heat Transferred 1665 | . . . 1665 . Parts Sabotaged . | . . . . . Parts Stolen . | . . . . . Parts Stripped . | . . . . . Power Chain Reactions . | . . . . . Missiles Intercepted . | . . . . . Alert | -11 -10 -10 -9 -9 ------- Run | Jun Mat Min Mat Sto Peak Influence 289 | . 34 168 271 289 Initial 50 | . . 13 . 50 Average 118 | . 10 125 78 151 Maximum Alert Level 1 | . . . 1 1 Low Security (%) 84 | 100 100 100 93 72 Level 1 15 | . . . 6 27 Level 2 . | . . . . . Level 3 . | . . . . . Level 4 . | . . . . . Level 5 . | . . . . . High Security . | . . . . . Max Security . | . . . . . Squads Dispatched 3 | . . 1 . 2 Investigation 1 | . . 1 . . Extermination . | . . . . . Reinforcement 1 | . . . . 1 Assault . | . . . . . Garrison 1 | . . . . 1 Intercept . | . . . . . Searches Triggered . | . . . . . Construction Impeded . | . . . . . Haulers Reinforced . | . . . . . Active Scanning Responses . | . . . . . Cargo Convoy Interrupts . | . . . . . Stealth | -11 -10 -10 -9 -9 --------- Run | Jun Mat Min Mat Sto Distress Signals 4 | . . . 2 2 Communications Jammed . | . . . . . Distress Signals . | . . . . . Times Spotted 66 | . 3 8 27 28 Peak Tracking Total 9 | . 3 3 8 9 Tactical Retreats 4 | . . 1 3 . Traps | -11 -10 -10 -9 -9 ------- Run | Jun Mat Min Mat Sto Traps Triggered 1 | . . . . 1 Indirectly . | . . . . . Trap Hack Attempts . | . . . . . Triggered . | . . . . . Disarmed . | . . . . . Reprogrammed . | . . . . . Reused . | . . . . . Traps Extracted . | . . . . . Installed . | . . . . . Triggered . | . . . . . Machines | -11 -10 -10 -9 -9 ---------- Run | Jun Mat Min Mat Sto Machines Disabled 1 | . . . . 1 Max in Single Turn 1 | . . . . 1 Machines Repaired . | . . . . . Machines Sabotaged . | . . . . . Overloaded Fab Kills . | . . . . . Hacking | -11 -10 -10 -9 -9 --------- Run | Jun Mat Min Mat Sto Machines Accessed 12 | . . 2 4 6 Terminals 9 | . . . 3 6 Fabricators . | . . . . . Repair Stations 1 | . . . 1 . Recycling Units . | . . . . . Scanalyzers . | . . . . . Garrison Access . | . . . . . Total Hacks 30 | . . 2 10 18 Successful 16 | . . 2 7 7 Failed 14 | . . . 3 11 Catastrophic 2 | . . . . 2 Database Lockouts . | . . . . . Manual 10 | . . . 5 5 Terminals 25 | . . . 7 18 Fabricators . | . . . . . Repair Stations 3 | . . . 3 . Recycling Units . | . . . . . Scanalyzers . | . . . . . Garrison Access . | . . . . . Terminal Hacks 8 | . . 2 1 5 Robot Analysis 1 | . . . . 1 Open Door 6 | . . 2 . 4 Branch Access Points 1 | . . . 1 . Fabricator Hacks . | . . . . . Repair Station Hacks 2 | . . . 2 . Scan Component 1 | . . . 1 . Repair 1 | . . . 1 . Recycling Unit Hacks . | . . . . . Scanalyzer . | . . . . . Garrison Access Hacks . | . . . . . Unauthorized Hacks 6 | . . . 4 2 Terminals 6 | . . . 4 2 Track 3 | . . . 2 1 Botnet 3 | . . . 2 1 Fabricators . | . . . . . Repair Stations . | . . . . . Recycling Units . | . . . . . Scanalyzers . | . . . . . Garrison Access . | . . . . . Data Cores Recovered . | . . . . . Used . | . . . . . Hacking Detections 6 | . . . 3 3 Full Trace Events 2 | . . . 1 1 Feedback Events . | . . . . . Feedback Blocked . | . . . . . Robot Schematics Acquired . | . . . . . Robots Built . | . . . . . Authchips . | . . . . . Time . | . . . . . Total Robot Build Rating . | . . . . . Part Schematics Acquired . | . . . . . Parts Built . | . . . . . Authchips . | . . . . . Time . | . . . . . Total Part Build Rating . | . . . . . Parts Repaired 1 | . . . 1 . Time 50 | . . . 50 . Parts Recycled . | . . . . . Recycled Matter . | . . . . . Retrieved Matter . | . . . . . Retrieved Components . | . . . . . Parts Scanalyzed . | . . . . . Part Schematics Acquired . | . . . . . Parts Damaged . | . . . . . Bothacking | -11 -10 -10 -9 -9 ------------ Run | Jun Mat Min Mat Sto Used RIF Installer . | . . . . . Robots Hacked . | . . . . . Non-combat . | . . . . . Combat . | . . . . . Robot Hacks Applied . | . . . . . Relay Couplers Released . | . . . . . Fabnet Peak Effective % . | . . . . . Robots Rewired . | . . . . . Allies Hacked . | . . . . . Hacks Repelled . | . . . . . Allies | -11 -10 -10 -9 -9 -------- Run | Jun Mat Min Mat Sto Total Allies . | . . . . . Largest Group . | . . . . . Highest-Rated Group . | . . . . . Highest-Rated Ally . | . . . . . Total Orders 2 | . . . . 2 STAY 1 | . . . . 1 FOLLOW 1 | . . . . 1 Ally Attacks . | . . . . . Total Damage . | . . . . . Kills . | . . . . . Allies Corrupted . | . . . . . Allies Melted . | . . . . . Intel | -11 -10 -10 -9 -9 ------- Run | Jun Mat Min Mat Sto Robot Analysis Total 1 | . . . . 1 Derelict Logs Recovered 1 | . . 1 . . Drone Launches 1 | . . . . 1 Drone Recoveries 1 | . . . . 1 Exploration | -11 -10 -10 -9 -9 ------------- Run | Jun Mat Min Mat Sto Turns Passed 2948 | 52 139 428 802 1527 Spaces Moved 1215 | 38 90 221 266 600 Core 11 | 9 . . . 2 Treads . | . . . . . Legs 1204 | 29 90 221 266 598 Wheels . | . . . . . Hover . | . . . . . Flight . | . . . . . Fastest Speed 50 | 50 120 120 190 190 Average Speed 179 | 106 120 162 190 194 Slowest Speed 600 | 120 120 190 190 600 Overloaded Moves . | . . . . . Propulsion Burnouts . | . . . . . Robots Hopped . | . . . . . Cave-ins Triggered . | . . . . . Exploration Rate (%) 36 | 4 25 47 25 79 Regions Visited 4 Branch Regions 2 Pre-discovered Areas . | . . . . . Known Exits Taken 1 | . . . 1 . Unknown Exits Taken 3 | 1 1 1 . . Scrap Searched 1 | . . 1 . . Spaces Dug 1 | . . . . 1 Terrain Destroyed 1 | . . . . 1 Melee 1 | . . . . 1 Projectile . | . . . . . AOE . | . . . . . Terrain Rammed . | . . . . . Walls Destroyed . | . . . . . Machines Disabled . | . . . . . Actions | -11 -10 -10 -9 -9 --------- Run | Jun Mat Min Mat Sto Total 1781 | 46 105 267 497 866 Wait 298 | 2 . 3 133 160 Move 1211 | 37 89 220 265 600 Hop . | . . . . . Pick Up 25 | 1 6 11 . 7 Fast Attach 24 | 6 1 3 6 8 Attach 12 | . . 3 . 9 Detach . | . . . . . Swap 17 | . . 3 8 6 Drop 33 | . 1 11 11 10 Fire 95 | . 8 13 74 . Melee 62 | . . . . 62 Ram . | . . . . . Kick . | . . . . . Crush . | . . . . . Escape Stasis 4 | . . . . 4 Rewire . | . . . . . Trap . | . . . . . Miscellaneous . | . . . . . Route ------- -11/Junkyard -10/Materials -10/Mines -9/Materials (discovered 3 exits: Min / *Sto x2) -9/Storage (discovered 1 exit: [*Mat]) History --------- Turn | Location | Event 6 | -11/Junkyard | Discovered new exit (range 15) 53 | -11/Junkyard | Entered Materials 176 | -10/Materials | Discovered new exit (range 14) 192 | -10/Materials | Entered Mines 215 | -10/Mines | Learned Materials trap positions 304 | -10/Mines | Build established: Mutant 327 | -10/Mines | Met a Derelict shopkeep closing up shop 483 | -10/Mines | Found the Drone Emporium 490 | -10/Mines | Found Prototype Device 490 | -10/Mines | Identified Sensor Drone Bay 601 | -10/Mines | Discovered new exit (range 11) 620 | -10/Mines | Entered Materials 620 | -9/Materials | Evolved 2 slots: Utility x2 621 | -9/Materials | Loaded intel: 15 trap records 641 | -9/Materials | Identified exit to Mines 641 | -9/Materials | Identified exit to Storage 1095 | -9/Materials | Repaired Lgt. Angular Momentum Engine 1116 | -9/Materials | Build established: Scavenger-Mutant 1422 | -9/Materials | Entered Storage 1753 | -9/Storage | Build established: Mutant 1984 | -9/Storage | Core integrity fell below 50% 2043 | -9/Storage | Lost 10 parts (2p2n5u1w) 2196 | -9/Storage | Core integrity fell below 20% 2679 | -9/Storage | Discovered new exit (range 12) 2944 | -9/Storage | Garrison activated, responded to threat 2949 | -9/Storage | Destroyed by Y-45 Defender with Heavy Assault Rifle Last Messages --------------- 02753_ R-06 Scavenger inserts Hvy. Assault Rifle into recycling unit. 02756_ R-06 Scavenger inserts Beam Rifle into recycling unit. 02757_ Recycling unit begins recycling process. 02759_ R-06 Scavenger inserts Hover Unit into recycling unit. 02782_ Connecting with Door Terminal... >>Open(Door) Sealed Heavy Doors opened. 02788_ Acquired Drone Bay. 02805_ Y-45 Defender destroyed. 02817_ Y-45 Defender Beam Rifle severed. 02827_ Y-45 Defender destroyed. 02831_ Acquired 10 matter. 02924_ W-16 Scout sends out distress signal. 02935_ Critical hit (Burn: +37). 02939_ Destroyed Heat Sink. 02944_ Y-45 Defender Lgt. Armor Plating severed. 02944_ Y-45 Defender calls for garrison reinforcements. 02944_ ALERT: Activating Garrison Access S001. 02945_ S-10 Pest emerges from the garrison. 02946_ S-10 Pest destroyed. Map ----- +----------------------------------------------------+ | | | | | | | | | | | | | | | | | | | | | | | | | | | | | | | | | | | ?????????????????????????????????????????????????? | | ???????????????????????????????????? #???????????? | | ???????????????????????#"""#????????? ??????????? | | ????????????????????####"T"###???????? ########## | | ????????????????????# ##?????""" # | | ????????????????????# """ #?????""" + | | ????????????????????# """ #??????????#^ | | ????????????????????# s""" !#??????????# ### | | ????????????????????# Y@[ #??????????# #?? | | ????????????????????# " " #??????????# #?? | | ??????????????####### "G" #??????????# #?? | | ??????????????? # s " #??????????# ### | | ???????????????? # #??????????# | | """??????????????" #+###+############### | | #??????????????" # | | #??????????????" + | | [###????????????" # ###### | | !=#T######???????" ######################+#####?? | | %%+!# !!!#?# """" ######???????????# #?? | | *#[= #?# ## ???????????# #?? | | #=# !!!#?########/## """ "?????????# #?? | | ########????????# ## """ "?????????# #?? | | #?###?????????### ## """ ""????????# #?? | | ###T########### # """ """???????# #?? | | # """ """ ""#???# #?? | | + #?????# !% #?? | | ####+##### ##### # #?????####/######?? | | ## #?####+######"Y"####????????# #??????? | | """ ## #?# #??""#??????????##%##?????? | | """ ## #?# #???############# ! ######? | | """ + ?+ """ #???# | | [ ### #?# ??"""" #???????#### # ######? | | """ #?# #?#??????? #??????????# #####?????? | +----------------------------------------------------+ Best States ------------- Heat Dissipation 42 Energy Generation 18 Energy Capacity 280 Matter Stores 300 Matter Capacity 300 Sight Range 16 Terrain Scan Density 10 Additional Mass Support 6 Armor Coverage 600 Evasion (%) 55 Item Schematics ----------------- None Robot Schematics ------------------ None Fabricated ------------ Nothing Alien Tech Used ----------------- None Achievements -------------- None Challenges ------------ None Game ------ Seed GreatLatentDesublimator Manual? 0 Play Time 00:14:16 Cumulative 394.4 hours Start 2023.03.07 @ 22:38:47 End 2023.03.07 @ 22:52:35 Sessions 1 Manual Loads 0 Difficulty Rogue Special Mode None Game No. 708 Rogue 553 Adventurer 148 Explorer 7 Win Type - Total 16 Types 14/0/1/1/0/0/0/0/0 Lore% 77 Gallery% 87 Achievement% 72 Wizard Run 0 Options --------- ASCII 0 Keyboard 0 Movement Numpad Keybinds 0 Fullscreen 2 Font 18/SmallcapsGlow Map View 76x50 Tactical HUD 1 Map Filters NONE Filters NONE Steam 1 RUN: 7e9ce556-73eb-4e57-b0dd-70449c119ab6